Cogmind - Beta 14 @@@ ROGUE MODE // 2024.08.10 @ 03:03:05 Player: Rosa Result: Destroyed by G-47 Trooper with Particle Gun Performance ------------- Evolutions (0) 0 Regions Visited (2) 400 Robots Destroyed (15) 75 Value Destroyed (312) 312 Prototype IDs (0) 0 Alien Tech Used (0) 0 Bonus (0) 0 TOTAL SCORE: 787 Bonus ------- None Cogmind --------- Core Integrity 0/250 Matter 294/300 Energy 100/100 System Corruption 2% Temperature Cool (27) Movement Core (100) Ox1 Location -10/Mines Parts ------- > --- POWER (1) -------- (None) > --- PROPULSION (2) --- (None) > --- UTILITY (2) ------ Small Storage Unit Power Shielding > --- WEAPON (2) ------- (None) > --- INVENTORY (8) ---- Improved Heat Sink Small Storage Unit Signal Interpreter Tractor Beam Peak State ------------ > --- POWER ------------ Ion Engine > --- PROPULSION ------- Light Treads Light Treads > --- UTILITY ---------- Small Storage Unit Power Shielding > --- WEAPON ----------- Light Assault Rifle Grenade Launcher > --- INVENTORY -------- Light Ion Engine Light Ion Engine Compact Wheel Small Storage Unit Tractor Beam Small Laser Light Assault Rifle [Rating: 7] Favorites ----------- Power Ion Engine Engine Ion Engine Propulsion Light Treads Treads Light Treads Wheel Compact Wheel Hover Unit Hover Unit Utility Small Storage Unit Storage Small Storage Unit Protection Power Shielding Weapon Light Assault Rifle Energy Gun Small Laser Ballistic Gun Light Assault Rifle Launcher Grenade Launcher Build | -11 -10 -10 ------- Run | Yrd Mat Min Slots Evolved . | . . . Power . | . . . Propulsion . | . . . Utility . | . . . Weapon . | . . . Parts Attached 17 | 8 6 3 Power 3 | 1 1 1 Engine 3 | 1 1 1 Core . | . . . Reactor . | . . . Propulsion 6 | 4 1 1 Treads 2 | 2 . . Leg . | . . . Wheel 3 | 2 . 1 Hover 1 | . 1 . Flight . | . . . Utility 3 | 1 1 1 Device . | . . . Storage 2 | 1 . 1 Processor . | . . . Hackware . | . . . Protection 1 | . 1 . Artifact . | . . . Weapon 5 | 2 3 . Energy Gun 2 | 1 1 . Energy Cannon . | . . . Ballistic Gun 1 | 1 . . Ballistic Cannon . | . . . Launcher 2 | . 2 . Special Weapon . | . . . Impact Weapon . | . . . Slashing Weapon . | . . . Piercing Weapon . | . . . Special Melee Weapon . | . . . Unidentified Prototypes . | . . . Parts Lost 8 | . 2 6 Power 2 | . . 2 Propulsion 3 | . 1 2 Utility . | . . . Weapon 3 | . 1 2 Highest Loss Streak 5 | . 2 5 To Critical Strikes . | . . . Average Slot Usage (%) 85 | . 89 71 Engine 13 | . 14 11 Treads 18 | . 23 . Wheel 1 | . . 6 Hover 1 | . . 5 Storage 14 | . 14 14 Protection 9 | . 8 14 Energy Gun 1 | . 1 . Ballistic Gun 13 | . 14 10 Launcher 10 | . 11 8 Peak Build Rating 7 | 6 7 6 Average Rating 5 | 4 6 4 On Entrance 4 | . 6 6 Naked Turns . | . . . Heaviest Build 15 | 12 15 13 Greatest Support 40 | 40 40 16 Greatest Overweight (x) 4 | 2 2 4 Average Overweight (x) . | . . . Largest Inventory Capacity 8 | 8 8 8 Average Capacity 7 | 6 8 8 Most Carried 8 | 8 8 6 Average Carried 6 | 5 7 5 Final Capacity 8 | 8 8 8 Final Carried 8 | 8 6 4 Class Distribution -------------------- 100% | Mutant Dominant Class ---------------- Mutant | -10/Materials Mutant | -10/Mines Resources | -11 -10 -10 ----------- Run | Yrd Mat Min Matter Collected 503 | 288 176 39 Remotely . | . . . Salvage Created 430 | 94 280 56 Parts 29 | 8 19 2 Haulers Intercepted . | . . . Recyclers Shooed 3 | . 2 1 Parts Field Recycled . | . . . Retrieved Matter . | . . . Parts Self-Destructed . | . . . Prevented . | . . . Kills | -11 -10 -10 ------- Run | Yrd Mat Min Combat Hostiles Destroyed 7 | . 4 3 Guns 5 | . 4 1 AOE 2 | . . 2 Classes Destroyed 6 | 3 3 . Worker 2 | 1 1 . Builder 1 | . 1 . Tunneler 1 | 1 . . Recycler 3 | 1 2 . Watcher 1 | . 1 . Grunt 7 | . 4 3 Best Kill Streak 3 | 3 3 1 Combat Bots Only 2 | . 2 1 Max Kills in Single Turn 1 | 1 1 1 Gunslinging . | . . . Exploded 1 | . . 1 Melee . | . . . Uniques/NPCs Destroyed . | . . . Combat | -11 -10 -10 -------- Run | Yrd Mat Min Hostile Shots Fired 94 | . 47 47 Missed 28 | . 14 14 Damage Taken 980 | . 427 553 Core 252 | . 42 210 Absorbed by Shields . | . . . Redirected to Shielding 42 | . 9 33 Regen/Repaired (Parts) 21 | . 21 . Core Remaining (%) 100 | 100 . . Volleys Fired 71 | 8 38 25 Largest 2 | 2 2 2 Hottest 60 | 60 60 50 Shots Fired 113 | 15 65 33 Gun 95 | 15 55 25 Cannon . | . . . Launcher 18 | . 10 8 Special . | . . . Kinetic 71 | 8 38 25 Thermal 24 | 7 17 . Explosive 18 | . 10 8 Electromagnetic . | . . . Robot Hit Streak 9 | 3 7 9 Robot Miss Streak 6 | 3 6 5 Penetration Max . | . . . Secondary Targets 3 | . 3 . Max Gunslinging Chain 1 | . 1 . Shots Hit Robots 59 | 7 31 21 Core Hits 39 | 4 20 15 Critical Kills 1 | . . 1 Critical Parts Destroyed . | . . . Critical Strikes 1 | . . 1 Destroy 1 | . . 1 Melee Attacks . | . . . Impact . | . . . Slashing . | . . . Piercing . | . . . Sneak Attacks . | . . . Combat Hostiles . | . . . Follow-up Attacks . | . . . Damage Inflicted 1108 | 82 542 484 Guns 490 | 82 268 140 Cannons . | . . . Explosions 570 | . 270 300 Melee . | . . . Ramming 48 | . 4 44 Kinetic 328 | 35 153 140 Thermal 162 | 47 115 . Explosive 570 | . 270 300 Electromagnetic . | . . . Impact . | . . . Slashing . | . . . Piercing . | . . . Highest Corruption 2 | . . 2 Average Corruption 2 | . . 2 Corruption Purged . | . . . Corruption Blocked . | . . . Effects 1 | . . 1 Data Loss (major) 1 | . . 1 Overload Shots . | . . . Overflow Damage 1 | . . 1 Projectiles . | . . . Explosions 1 | . . 1 Melee . | . . . Knockbacks 1 | . . 1 Impact 1 | . . 1 Kinetic . | . . . Secondary . | . . . Self-Inflicted Damage 118 | . 37 81 Shots 5 | . 2 3 Rammed 22 | . 1 21 Targets Rammed 22 | . 1 21 Kicked . | . . . Crushed . | . . . Highest Temperature 248 | 40 248 50 Average Temperature 66 | 17 96 18 Received Heat Transfer 528 | . 222 306 Effects 1 | . 1 . Energy Bleed 1 | . 1 . Siege Activations . | . . . Robots Corrupted . | . . . Combat Hostiles . | . . . Parts Fried . | . . . Impact Corruptions . | . . . Robots Melted . | . . . Combat Hostiles . | . . . Parts Melted . | . . . Heat Transferred 375 | 100 275 . Parts Sabotaged . | . . . Parts Stolen . | . . . Parts Stripped . | . . . Power Chain Reactions . | . . . Alert | -11 -10 -10 ------- Run | Yrd Mat Min Peak Influence 179 | 15 179 102 Initial 9 | . 9 . Average 61 | 3 80 64 Maximum Alert Level . | . . . Low Security (%) 100 | 100 100 100 Level 1 . | . . . Level 2 . | . . . Level 3 . | . . . Level 4 . | . . . Level 5 . | . . . High Security . | . . . Max Security . | . . . Squads Dispatched 1 | . 1 . Investigation . | . . . Extermination . | . . . Reinforcement 1 | . 1 . Assault . | . . . Garrison . | . . . Intercept . | . . . Searches Triggered . | . . . Construction Impeded . | . . . Haulers Reinforced . | . . . Active Scanning Responses . | . . . Cargo Convoy Interrupts . | . . . Stealth | -11 -10 -10 --------- Run | Yrd Mat Min Distress Signals 1 | . 1 . Communications Jammed . | . . . Distress Signals . | . . . Times Spotted 11 | . 7 4 Peak Tracking Total 3 | . 3 2 Tactical Retreats . | . . . Traps | -11 -10 -10 ------- Run | Yrd Mat Min Traps Triggered . | . . . Indirectly . | . . . Trap Hack Attempts . | . . . Triggered . | . . . Disarmed . | . . . Reprogrammed . | . . . Reused . | . . . Traps Extracted . | . . . Installed . | . . . Triggered . | . . . Machines | -11 -10 -10 ---------- Run | Yrd Mat Min Machines Disabled . | . . . Max in Single Turn . | . . . Machines Repaired . | . . . Machines Dismantled . | . . . Machines Sabotaged . | . . . Overloaded Fab Kills . | . . . Hacking | -11 -10 -10 --------- Run | Yrd Mat Min Machines Accessed 2 | . 2 . Terminals 1 | . 1 . Fabricators . | . . . Repair Stations 1 | . 1 . Recycling Units . | . . . Scanalyzers . | . . . Garrison Access . | . . . Total Hacks 8 | . 8 . Successful 5 | . 5 . Failed 3 | . 3 . Catastrophic 1 | . 1 . Database Lockouts . | . . . Manual . | . . . Terminals 4 | . 4 . Fabricators . | . . . Repair Stations 4 | . 4 . Recycling Units . | . . . Scanalyzers . | . . . Garrison Access . | . . . Terminal Hacks 3 | . 3 . Record 3 | . 3 . Fabricator Hacks . | . . . Repair Station Hacks 2 | . 2 . Scan Component 1 | . 1 . Repair 1 | . 1 . Recycling Unit Hacks . | . . . Scanalyzer . | . . . Garrison Access Hacks . | . . . Unauthorized Hacks . | . . . Terminals . | . . . Fabricators . | . . . Repair Stations . | . . . Recycling Units . | . . . Scanalyzers . | . . . Garrison Access . | . . . Data Cores Recovered . | . . . Used . | . . . Hacking Detections 2 | . 2 . Full Trace Events 1 | . 1 . Feedback Events . | . . . Feedback Blocked . | . . . Robot Schematics Acquired . | . . . Robots Built . | . . . Authchips . | . . . Time . | . . . Total Robot Build Rating . | . . . Part Schematics Acquired . | . . . Parts Built . | . . . Authchips . | . . . Time . | . . . Total Part Build Rating . | . . . Parts Repaired 1 | . 1 . Time 26 | . 26 . Parts Recycled . | . . . Recycled Matter . | . . . Retrieved Matter . | . . . Retrieved Components . | . . . Parts Scanalyzed . | . . . Part Schematics Acquired . | . . . Parts Damaged . | . . . Bothacking | -11 -10 -10 ------------ Run | Yrd Mat Min Used RIF Installer . | . . . Robots Hacked . | . . . Non-combat . | . . . Combat . | . . . Robot Hacks Applied . | . . . Relay Couplers Released . | . . . Fabnet Peak Effective % . | . . . Robots Rewired . | . . . Allies Hacked . | . . . Hacks Repelled . | . . . Allies | -11 -10 -10 -------- Run | Yrd Mat Min Total Allies . | . . . Largest Group . | . . . Highest-Rated Group . | . . . Highest-Rated Ally . | . . . Total Orders . | . . . Ally Attacks . | . . . Total Damage . | . . . Kills . | . . . Allies Corrupted . | . . . Allies Melted . | . . . Intel | -11 -10 -10 ------- Run | Yrd Mat Min Robot Analysis Total . | . . . Derelict Logs Recovered . | . . . Drone Launches . | . . . Drone Recoveries . | . . . Exploration | -11 -10 -10 ------------- Run | Yrd Mat Min Turns Passed 738 | 158 448 132 Spaces Moved 338 | 92 207 39 Core 44 | 35 . 9 Treads 256 | 55 201 . Legs . | . . . Wheels 22 | 2 . 20 Hover 16 | . 6 10 Flight . | . . . Fastest Speed 50 | 50 160 100 Average Speed 147 | 125 160 128 Slowest Speed 250 | 160 180 250 Overloaded Moves . | . . . Propulsion Burnouts . | . . . Robots Hopped . | . . . Cave-ins Triggered . | . . . Exploration Rate (%) 18 | 6 36 14 Regions Visited 2 Branch Regions 1 Pre-discovered Areas . | . . . Known Exits Taken . | . . . Unknown Exits Taken 2 | 1 1 . Scrap Searched . | . . . Spaces Dug . | . . . Terrain Destroyed 142 | . 68 74 Melee . | . . . Projectile . | . . . AOE 142 | . 68 74 Terrain Rammed . | . . . Walls Destroyed . | . . . Machines Disabled . | . . . Actions | -11 -10 -10 --------- Run | Yrd Mat Min Total 481 | 121 268 92 Wait 4 | . . 4 Move 336 | 91 206 39 Hop . | . . . Pick Up 23 | 14 9 . Fast Attach . | . . . Attach 12 | 6 4 2 Detach . | . . . Swap 5 | 2 2 1 Drop 8 | . 8 . Fire 71 | 8 38 25 Melee . | . . . Ram 21 | . . 21 Kick . | . . . Crush 1 | . 1 . Escape Stasis . | . . . Rewire . | . . . Trap . | . . . Miscellaneous . | . . . Route ------- -11/Scrapyard -10/Materials -10/Mines History --------- Turn | Location | Event 16 | -11/Scrapyard | Discovered new exit (range 16) 159 | -11/Scrapyard | Entered Materials 311 | -10/Materials | Build established: Mutant 452 | -10/Materials | Repaired Grenade Launcher 504 | -10/Materials | Discovered new exit (range 16) 607 | -10/Materials | Entered Mines 705 | -10/Mines | Core integrity fell below 50% 730 | -10/Mines | Core integrity fell below 20% 739 | -10/Mines | Destroyed by G-47 Trooper with Particle Gun Last Messages --------------- 00711_ Destabilizing: System corrupted (+2). 00712_ Slammed into G-47 Trooper. 00713_ System corrupted: Substantial component data lost. 00713_ Slammed into G-47 Trooper. 00715_ The unstable cave ceiling collapses. 00715_ Slammed into G-47 Trooper. 00717_ Lgt. Ion Engine destroyed. 00718_ Slammed into G-47 Trooper. 00722_ R-06 Scavenger collects Aluminum Leg. 00723_ Slammed into G-47 Trooper. 00723_ Com. Wheel destroyed. 00724_ Slammed into G-47 Trooper. 00724_ Destabilizing: Core damaged (-7). 00726_ Slammed into G-47 Trooper. 00727_ The unstable cave ceiling collapses. 00729_ Slammed into G-47 Trooper. 00738_ Destabilizing: Core damaged (-2). 00739_ Slammed into G-47 Trooper. 00739_ Critical hit (Burn: +37). Map ----- +----------------------------------------------------+ | | | | | | | | | | | ?????????????????????????????????????????????????? | | ?????????????????????????????????????????????????? | | ?????????????????????????????????????????????????? | | ?????????????????????????????????????????????????? | | ?????????????????????????????????????????????????? | | ?????????????????????????????????????????????????? | | ?????????????????????????????????????????????????? | | ?????????????????????????????????????????????????? | | ?????????????????????????????????????????????????? | | ?????????????????????????????????????????????????? | | ???????????????????????#######???####?###????????? | | ????????????????????#### # ##### ### ########## | | ????????????????????# # # ## | | ????????????????????# # # | | ????????????????????# % ## = | | ????????????????????# #### | | ????????????????????#""" #??# | | ????????????????????#""" ##??##### ##### | | ????????????????????#""" #???????#####???### # | | ????????????????????# #?????????????????### | | ????????????????????#####@ ###???????????????????? | | ????????????????????????# g#?????????????????????? | | ????????????????????????# #?????????????????????? | | ????????????????????????# t#?????????????????????? | | ????????????????????????# #?????????????????????? | | ????????????????????????# #?????????????????????? | | ???????????????????????? ?????????????????????? | | ???????????????????????? ?????????????????????? | | ??????????????????????? ????????????????????? | | ??????????????????????? ## ????????????????????? | | ???????????????????????#??# ????????????????????? | | ???????????????????????????# ???????????????????? | | ???????????????????????????? ???????????????????? | | ???????????????????????????? ???????????????????? | | ???????????????????????????? ??????????????????? | | ????????????????????????????? ???????????????????? | | ?????????????????????????????????????????????????? | | ?????????????????????????????????????????????????? | | ?????????????????????????????????????????????????? | | ?????????????????????????????????????????????????? | | ?????????????????????????????????????????????????? | | ?????????????????????????????????????????????????? | | ?????????????????????????????????????????????????? | | ?????????????????????????????????????????????????? | | ?????????????????????????????????????????????????? | +----------------------------------------------------+ Best States ------------- Heat Dissipation 25 Energy Generation 10 Energy Capacity 250 Matter Stores 300 Matter Capacity 300 Sight Range 16 Terrain Scan Density 10 Power Shielding 33 Evasion (%) 50 Recoil Reduction 2 Item Schematics ----------------- None Robot Schematics ------------------ None Fabricated ------------ Nothing Alien Tech Used ----------------- None Achievements -------------- None Challenges ------------ None Game ------ Seed ConcussiveSalvageBasin Manual? 0 Play Time 00:10:17 Cumulative 9.8 hours Start 2024.08.10 @ 02:53:59 End 2024.08.10 @ 03:03:05 Sessions 1 Manual Loads 0 Difficulty Rogue Special Mode None Game No. 41 Rogue 39 Adventurer 0 Explorer 2 Win Type - Total 0 Types 0/0/0/0/0/0/0/0/0 Lore% 2 Gallery% 18 Achievement% 8 Wizard Run 0 Options --------- Layout 1 ASCII 0 Keyboard 0 Movement Numpad Keybinds 0 Fullscreen 1 Font 32/SmallcapsGlow Map View 50x35 Zoom Use 0% Tactical HUD 1 Map Filters NONE Filters NONE Steam 1 RUN: 206e70c4-d713-4801-a618-77dfb450e7ad